bitfinex/quotes_BTCUSD_20240613
["timestamp","ask_amount","ask_price","bid_price","bid_amount"]
[1718282402532,0.00885158,67801.0,67800.0,0.11]
[1718282402822,0.00885158,67803.0,67802.0,0.1]
[1718282402952,0.09176802,67812.0,67801.0,0.01]
[1718282402953,0.1006196,67812.0,67801.0,0.1]
[1718282403156,0.14431993,67811.0,67804.0,0.1]
[1718282403365,0.14431993,67811.0,67805.0,0.1]
[1718282403628,0.14431993,67811.0,67801.0,0.01]
[1718282403629,0.01,67809.0,67801.0,0.1]
[1718282403837,0.14431993,67808.0,67805.0,0.1]
[1718282404073,0.14431993,67808.0,67802.0,0.1]
[1718282404289,0.014,67812.0,67809.0,0.1]
[1718282404497,0.014,67812.0,67805.0,0.01]
[1718282404498,0.014,67812.0,67808.0,0.1]
[1718282404705,0.014,67811.0,67810.0,0.1]
[1718282405154,0.014,67811.0,67810.0,0.11]
[1718282405399,0.014,67811.0,67805.0,0.1]
[1718282405626,0.014,67811.0,67810.0,0.1]
[1718282405838,0.014,67811.0,67810.0,0.11]
[1718282406096,0.014,67811.0,67810.0,0.16]
[1718282406303,0.014,67811.0,67804.0,0.38415996]
[1718282406304,0.10174972,67833.0,67821.0,0.1]
[1718282406508,0.00884937,67826.0,67821.0,0.1]
[1718282406785,0.00884937,67831.0,67828.0,0.1]
[1718282407024,0.01,67833.0,67829.0,0.1]
[1718282407237,0.01,67833.0,67831.0,0.1]
[1718282407238,0.14431993,67832.0,67831.0,0.1]
[1718282407646,0.3303,67838.0,67835.0,0.1]
[1718282407858,0.02307595,67845.0,67836.0,0.1]
[1718282407859,0.03192532,67845.0,67836.0,0.1]
[1718282408063,0.14431993,67844.0,67837.0,0.1]
[1718282408264,0.14431993,67844.0,67839.0,0.1]
[1718282408445,0.01,67841.0,67832.0,0.1]
[1718282408668,0.01,67841.0,67837.0,0.1]
[1718282408669,0.14431993,67840.0,67837.0,0.1]
[1718282408849,0.14431993,67840.0,67833.0,0.1]
[1718282409050,0.14431993,67840.0,67837.0,0.1]
[1718282409255,0.14431993,67840.0,67836.0,0.1]
[1718282409466,0.14431993,67840.0,67837.0,0.1]
[1718282409672,0.14431993,67840.0,67839.0,0.1]
[1718282409920,0.058982,67845.0,67839.0,0.1]
[1718282410119,0.313,67847.0,67844.0,0.1]
[1718282410333,0.313,67847.0,67837.0,0.1]
[1718282410473,0.313,67847.0,67839.0,0.11]
[1718282410474,0.014,67840.0,67839.0,0.11]
[1718282410879,0.323,67847.0,67843.0,0.1]
[1718282411099,0.14431993,67846.0,67845.0,0.1]
[1718282411456,0.14431993,67846.0,67837.0,0.1]
[1718282411457,0.15431993,67846.0,67837.0,0.1]
[1718282411661,0.14431993,67846.0,67842.0,0.1]
[1718282411867,0.14431993,67846.0,67845.0,0.1]
[1718282412075,0.14431993,67846.0,67842.0,0.1]
[1718282412286,0.14431993,67846.0,67838.0,0.01]
[1718282412287,0.14431993,67846.0,67843.0,0.1]
[1718282412497,0.14431993,67846.0,67845.0,0.1]
[1718282412700,0.00884625,67857.0,67845.0,0.1]
[1718282412701,0.3286,67855.0,67849.0,0.1]
[1718282412908,0.3286,67855.0,67839.0,0.05]
[1718282412909,0.14431993,67852.0,67847.0,0.1]
[1718282413112,0.01,67845.0,67836.0,0.1]
[1718282413324,0.01,67843.0,67836.0,0.1]
[1718282413525,0.315,67839.0,67829.0,0.1]
[1718282413727,0.315,67839.0,67830.0,0.1]
[1718282413940,0.14431993,67838.0,67830.0,0.1]
[1718282414147,0.14403974,67838.0,67833.0,0.1]
[1718282414318,0.01,67840.0,67833.0,0.1]
[1718282414531,0.01,67841.0,67833.0,0.1]
[1718282414736,0.01,67840.0,67833.0,0.1]
[1718282415009,0.014,67839.0,67833.0,0.1]
[1718282415216,0.014,67839.0,67837.0,0.1]
[1718282415417,0.014,67839.0,67838.0,0.1]
[1718282415838,0.014,67839.0,67830.0,0.1]
[1718282415839,0.16831993,67839.0,67830.0,0.1]
[1718282416040,0.16831993,67839.0,67826.0,0.05]
[1718282416041,0.01,67837.0,67829.0,0.1]
[1718282416203,0.01,67836.0,67829.0,0.1]
[1718282416527,0.01,67836.0,67833.0,0.001]
[1718282416747,0.01,67834.0,67833.0,0.001]
[1718282416982,0.01,67833.0,67828.0,0.1]
[1718282417294,0.01,67828.0,67821.0,0.1]
[1718282417442,0.024,67839.0,67830.0,0.001]
[1718282417565,0.015,67836.0,67830.0,0.001]
[1718282417759,0.01,67833.0,67830.0,0.001]
[1718282417964,0.01,67831.0,67830.0,0.001]
[1718282418166,0.15431993,67831.0,67830.0,0.001]
[1718282418679,0.25431993,67831.0,67830.0,0.001]
[1718282418905,0.25431993,67831.0,67813.0,0.15]
[1718282418906,0.01,67825.0,67813.0,0.15]
[1718282419156,0.14431993,67824.0,67813.0,0.15]
[1718282419579,0.14431993,67824.0,67815.0,0.1]
[1718282419784,0.14431993,67824.0,67813.0,0.15]
[1718282420026,0.271,67834.0,67810.0,0.2709]
[1718282420027,0.01,67831.0,67822.0,0.1]
[1718282420232,0.15431993,67830.0,67821.0,0.1]
[1718282420458,0.013,67833.0,67829.0,0.1]
[1718282420859,0.05,67846.0,67827.0,0.05]
[1718282420860,0.01,67838.0,67827.0,0.05]
[1718282421111,0.14431993,67837.0,67827.0,0.05]
[1718282421331,0.14431993,67837.0,67822.0,0.08215996]
[1718282421332,0.01,67843.0,67836.0,0.1]
[1718282421549,0.2526,67848.0,67843.0,0.1]
[1718282421777,0.14431993,67848.0,67840.0,0.1]
[1718282421994,0.01,67847.0,67837.0,0.05]
[1718282422241,0.04399795,67864.0,67850.0,0.05]
[1718282422458,0.01,67864.0,67855.0,0.05]
[1718282422684,0.058966,67864.0,67857.0,0.1]
[1718282422887,0.01,67863.0,67855.0,0.05]
[1718282423106,0.01,67863.0,67856.0,0.1]
[1718282423325,0.01,67866.0,67857.0,0.1]
[1718282423535,0.14431993,67865.0,67857.0,0.1]
[1718282423968,0.01,67861.0,67849.0,0.1]
[1718282424165,0.01,67854.0,67849.0,0.1]
[1718282424400,0.01,67854.0,67845.0,0.06]
[1718282424401,0.14431993,67860.0,67850.0,0.1]
[1718282424611,0.01,67862.0,67854.0,0.1]
[1718282424823,0.15431993,67861.0,67851.0,0.07215996]
[1718282425061,0.01,67860.0,67850.0,0.15]
[1718282425249,0.01,67860.0,67850.0,0.05]
[1718282425461,0.15431993,67861.0,67850.0,0.15]
[1718282425665,0.01,67860.0,67850.0,0.15]
[1718282425875,0.14431993,67861.0,67850.0,0.15]
[1718282425876,0.15431993,67861.0,67850.0,0.15]
[1718282426381,0.01,67858.0,67850.0,0.15]
[1718282426587,0.14431993,67861.0,67850.0,0.15]
[1718282426785,0.014,67862.0,67854.0,0.1]
[1718282427012,0.024,67860.0,67852.0,0.05]
[1718282427213,0.014,67860.0,67852.0,0.05]
[1718282427626,0.014,67858.0,67852.0,0.05]
[1718282427971,0.01,67856.0,67852.0,0.05]
[1718282428280,0.024,67858.0,67852.0,0.05]
[1718282428558,0.01,67842.0,67839.0,0.05]
[1718282428936,0.07215996,67854.0,67838.0,0.00086]
[1718282428937,0.01,67839.0,67838.0,0.00086]
[1718282429170,0.07215996,67854.0,67838.0,0.00086]
[1718282429171,0.01,67844.0,67838.0,0.00086]
[1718282429415,0.14431993,67844.0,67838.0,0.00086]
[1718282429629,0.01,67839.0,67838.0,0.00086]
[1718282429854,0.14431993,67844.0,67838.0,0.00086]
[1718282429855,0.01,67841.0,67838.0,0.00086]
[1718282430050,0.01,67842.0,67838.0,0.00086]
[1718282430865,0.01,67839.0,67838.0,0.00086]
[1718282431670,0.01,67840.0,67838.0,0.00086]
[1718282432074,0.01,67839.0,67838.0,0.00086]
[1718282432309,0.15431993,67839.0,67838.0,0.00086]
[1718282432584,0.16831993,67839.0,67838.0,0.00086]
[1718282433429,0.18231993,67839.0,67838.0,0.00086]
[1718282433661,0.40331993,67839.0,67838.0,0.00086]
[1718282433878,0.56749319,67839.0,67838.0,0.00086]
[1718282434107,0.01,67823.0,67814.0,0.05]
[1718282434352,0.221,67826.0,67822.0,0.43295979]
[1718282434529,0.14431993,67825.0,67814.0,0.05]
[1718282434703,0.221,67818.0,67809.0,0.05]
[1718282435122,0.221,67818.0,67806.0,0.05]
[1718282435285,0.221,67818.0,67804.0,0.05]
[1718282435286,0.221,67810.0,67804.0,0.05]
[1718282435924,0.221,67810.0,67799.0,0.05]
[1718282436133,0.221,67810.0,67809.0,0.004]
[1718282436540,0.36531993,67810.0,67809.0,0.004]
[1718282437572,0.37931993,67810.0,67794.0,0.05]
[1718282437772,0.18225192,67809.0,67798.0,0.43295979]
[1718282437978,0.14431993,67809.0,67795.0,0.1]
[1718282438178,0.14431993,67809.0,67794.0,0.05]
[1718282439465,0.221,67802.0,67794.0,0.05]
[1718282439806,0.221,67802.0,67794.0,0.15]
[1718282440030,0.221,67802.0,67799.0,0.00017755]
[1718282441540,0.235,67802.0,67799.0,0.00017755]
[1718282442369,0.249,67802.0,67799.0,0.00017755]
[1718282443517,0.028,67802.0,67801.0,0.11028019]
[1718282443725,0.028,67802.0,67801.0,0.15]
[1718282444038,0.028,67802.0,67799.0,0.00017755]
[1718282444239,0.14431993,67801.0,67799.0,0.00017755]
[1718282445417,0.014,67802.0,67799.0,0.00017755]
[1718282445832,0.014,67801.0,67799.0,0.00017755]
[1718282446245,0.014,67802.0,67799.0,0.00017755]
[1718282446456,0.22215996,67813.0,67799.0,0.00017755]
[1718282446711,0.014,67801.0,67799.0,0.00017755]
[1718282447116,0.028,67801.0,67799.0,0.00017755]
[1718282447551,0.028,67801.0,67800.0,0.15]
[1718282447770,0.028,67801.0,67800.0,0.05]
[1718282448011,0.028,67801.0,67800.0,0.15]
[1718282448259,0.014,67801.0,67799.0,0.00017755]
[1718282449386,0.221,67803.0,67799.0,0.00017755]
[1718282449637,0.221,67803.0,67781.0,0.05]
[1718282449638,0.05,67799.0,67781.0,0.05]
[1718282449875,0.05,67799.0,67792.0,0.43295979]
[1718282450093,0.14431993,67798.0,67786.0,0.1]
[1718282450303,0.1,67797.0,67786.0,0.1]
[1718282450980,0.14431993,67798.0,67792.0,0.1]
[1718282451203,0.14431993,67798.0,67788.0,0.05]
[1718282452010,0.14431993,67798.0,67783.0,0.05]
[1718282452450,0.271,67794.0,67782.0,0.0086]
[1718282452675,0.24431993,67793.0,67782.0,0.0086]
[1718282453649,0.06120773,67792.0,67782.0,0.0086]
[1718282453878,0.2019727,67791.0,67782.0,0.0086]
[1718282454109,0.16120773,67790.0,67782.0,0.0086]
[1718282454335,0.221,67786.0,67782.0,0.0086]
[1718282454596,0.14431993,67785.0,67782.0,0.0086]
[1718282454863,0.2487,67784.0,67782.0,0.0086]
[1718282455083,0.2741488,67783.0,67782.0,0.0086]
[1718282455355,0.20553334,67783.0,67782.0,0.0086]
[1718282456640,0.21647989,67783.0,67782.0,0.0086]
[1718282456992,0.38333113,67783.0,67782.0,0.0086]
[1718282457379,0.46949109,67783.0,67782.0,0.0086]
[1718282457591,0.6749502,67783.0,67782.0,0.0086]
[1718282457791,0.7249502,67783.0,67782.0,0.0086]
[1718282457992,0.7389502,67783.0,67782.0,0.0086]
[1718282458199,0.7389502,67783.0,67759.0,0.43295979]
[1718282458200,0.05,67764.0,67759.0,0.43295979]
[1718282458413,0.20555157,67763.0,67759.0,0.43295979]
[1718282458654,0.20555157,67763.0,67758.0,0.00856]
[1718282458655,0.1778,67760.0,67758.0,0.00856]
[1718282458859,0.06123164,67759.0,67758.0,0.00856]
[1718282459392,0.95901153,67759.0,67758.0,0.00856]
[1718282459578,0.88685157,67759.0,67758.0,0.00856]
[1718282459733,0.97695861,67759.0,67758.0,0.00856]
[1718282459944,1.07351134,67759.0,67758.0,0.00856]
[1718282460366,0.96465157,67759.0,67758.0,0.00856]
[1718282460579,1.1620027,67759.0,67758.0,0.00856]
[1718282460793,1.2503327,67759.0,67758.0,0.00856]
[1718282460993,0.05,67751.0,67746.0,0.00857]
[1718282461197,0.48681234,67751.0,67746.0,0.00857]
[1718282461402,0.57795157,67751.0,67746.0,0.00857]
[1718282461606,0.05,67747.0,67746.0,0.00857]
[1718282461988,0.05,67747.0,67706.0,0.43295979]
[1718282461989,0.05,67727.0,67706.0,0.43295979]
[1718282462187,0.05,67727.0,67692.0,0.05]
[1718282462188,0.08833,67719.0,67707.0,0.43295979]
[1718282462373,0.2724,67715.0,67683.0,0.05]
[1718282462588,0.06123164,67718.0,67672.0,0.48295979]
[1718282462589,0.2224,67688.0,67672.0,0.48295979]
[1718282462897,0.2581,67692.0,67672.0,0.43295979]
[1718282462898,0.2224,67680.0,67672.0,0.43295979]
[1718282463075,0.14431993,67679.0,67671.0,0.1]
[1718282463304,0.06129411,67678.0,67677.0,0.1]
[1718282463607,0.06129411,67678.0,67677.0,0.66738019]
[1718282463813,0.06129411,67678.0,67677.0,0.11028019]
[1718282464024,0.06129411,67678.0,67677.0,0.16028019]
[1718282464226,0.0088617,67691.0,67685.0,0.1]
[1718282464436,0.0088617,67691.0,67680.0,0.1]
[1718282464437,0.14431993,67690.0,67680.0,0.1]
[1718282464624,0.14431993,67690.0,67675.0,0.1]
[1718282464748,0.06128857,67689.0,67677.0,0.1]
[1718282464952,0.06128857,67689.0,67662.0,0.2605]
[1718282464953,0.0088617,67682.0,67679.0,0.1]
[1718282465157,0.2056085,67681.0,67675.0,0.1]
[1718282465370,0.2056085,67681.0,67667.0,0.1]
[1718282465371,0.2485,67677.0,67667.0,0.1]
[1718282465582,0.014,67678.0,67636.0,0.05]
[1718282465583,0.05,67647.0,67636.0,0.05]
[1718282465810,0.05,67647.0,67630.0,0.04064015]
[1718282465811,0.2224,67637.0,67630.0,0.03035996]
[1718282466216,0.06133718,67636.0,67630.0,0.03035996]
[1718282466644,0.14431993,67635.0,67631.0,0.1]
[1718282466877,0.06133718,67634.0,67632.0,0.1]
[1718282467093,0.0647,67647.0,67630.0,0.03035996]
[1718282467094,0.0147,67647.0,67646.0,0.16028019]
[1718282467330,0.0147,67647.0,67645.0,0.05]
[1718282467331,0.06133012,67647.0,67645.0,0.05]
[1718282467482,0.06133012,67647.0,67630.0,0.03035996]
[1718282467483,0.2224,67665.0,67651.0,0.3708]
[1718282467679,0.0088617,67676.0,67675.0,0.1]
[1718282467897,0.05,67698.0,67675.0,0.1]
[1718282467898,0.0088617,67682.0,67677.0,0.15]
[1718282468116,0.0088617,67683.0,67682.0,0.1]
[1718282468330,0.06130811,67683.0,67682.0,0.16028019]
[1718282468548,0.3118,67701.0,67674.0,0.07215996]
[1718282468549,0.2618,67701.0,67695.0,0.1]
[1718282468765,0.01513092,67716.0,67699.0,0.1]
[1718282468766,0.06129244,67700.0,67699.0,0.1]
[1718282468986,0.3285,67715.0,67687.0,0.07215996]
[1718282468987,0.06129244,67707.0,67706.0,0.11028019]
[1718282469193,0.06129244,67707.0,67702.0,0.05]
[1718282469194,0.0088617,67721.0,67714.0,0.1]
[1718282469409,0.20559459,67720.0,67714.0,0.1]
[1718282469633,0.20559459,67720.0,67712.0,0.05]
[1718282469634,0.06126654,67719.0,67712.0,0.05]
[1718282469863,0.14431993,67720.0,67715.0,0.1]
[1718282470076,0.14431993,67720.0,67713.0,0.1]
[1718282470077,0.0612687,67719.0,67713.0,0.1]
[1718282470284,0.20558863,67719.0,67715.0,0.1]
[1718282470532,0.14431993,67718.0,67707.0,0.1]
[1718282470731,0.01443199,67717.0,67708.0,0.1]
[1718282470955,0.01443199,67717.0,67701.0,0.12215996]
[1718282470956,0.14431993,67716.0,67709.0,0.1]
[1718282471169,0.332,67729.0,67723.0,0.1]
[1718282471383,0.14431993,67728.0,67726.0,0.1]
[1718282471588,0.06126647,67727.0,67726.0,0.1]
[1718282471785,0.14431993,67727.0,67726.0,0.11028019]
[1718282472019,0.14431993,67727.0,67723.0,0.1]
[1718282472020,0.15875192,67727.0,67723.0,0.1]
[1718282472252,0.253,67740.0,67727.0,0.1]
[1718282472495,0.14431993,67739.0,67738.0,0.11028019]
[1718282472691,0.2448,67749.0,67740.0,0.1]
[1718282472906,0.2055643,67748.0,67742.0,0.1]
[1718282473110,0.14431993,67748.0,67747.0,0.1]
[1718282473332,0.20555908,67748.0,67747.0,0.1]
[1718282473542,0.22611499,67748.0,67742.0,0.1]
[1718282473689,0.14431993,67746.0,67726.0,0.1]
[1718282474052,0.07215996,67747.0,67717.0,0.26]
[1718282474053,0.14431993,67743.0,67735.0,0.1]
[1718282474188,0.06124945,67742.0,67734.0,0.1]
[1718282474397,0.06124945,67742.0,67723.0,0.1]
[1718282474398,0.02055694,67741.0,67723.0,0.1]
[1718282474601,0.02055694,67741.0,67725.0,0.15]
[1718282474602,0.014,67727.0,67725.0,0.15]
[1718282474804,0.05,67744.0,67726.0,0.11028019]
[1718282475034,0.20556443,67743.0,67730.0,0.1]
[1718282475236,0.14431993,67741.0,67727.0,0.1]
[1718282475432,0.2484,67735.0,67725.0,0.1]
[1718282475664,0.07215996,67729.0,67720.0,0.1]
[1718282475939,0.07215996,67729.0,67690.0,0.1]
[1718282475940,0.46771993,67726.0,67709.0,0.1]
[1718282476137,0.14431993,67725.0,67713.0,0.53295979]
[1718282476340,0.06126323,67724.0,67715.0,0.1]
[1718282476465,0.14431993,67723.0,67707.0,0.1]
[1718282476683,0.14431993,67719.0,67704.0,0.1]
[1718282476886,0.14431993,67719.0,67702.0,0.1]
[1718282476887,0.06126188,67718.0,67702.0,0.1]
[1718282477109,0.06126188,67718.0,67699.0,0.1]
[1718282477110,0.05,67716.0,67699.0,0.1]
[1718282477372,0.20558181,67715.0,67703.0,0.1]
[1718282477536,0.05439118,67714.0,67699.0,0.1]
[1718282477742,0.39851993,67712.0,67694.0,0.1]
[1718282478086,0.06126188,67711.0,67694.0,0.1]
[1718282478296,0.44851993,67712.0,67694.0,0.1]
[1718282478297,0.20558181,67710.0,67694.0,0.1]
[1718282478494,0.20558181,67710.0,67695.0,0.1]
[1718282478737,0.26288561,67709.0,67693.0,0.1]
[1718282478947,0.06126188,67708.0,67694.0,0.07215996]
[1718282479158,0.06126188,67708.0,67703.0,0.1]
[1718282479361,0.014,67714.0,67702.0,0.12215996]
[1718282479362,0.06126188,67711.0,67707.0,0.16028019]
[1718282479552,0.2542,67723.0,67702.0,0.07215996]
[1718282479553,0.2542,67723.0,67713.0,0.1]
[1718282479805,0.0601165,67722.0,67706.0,0.1]
[1718282479985,0.014,67710.0,67709.0,0.1]
[1718282480208,0.014,67710.0,67709.0,0.11028019]
[1718282480579,0.014,67710.0,67709.0,0.16028019]
[1718282481042,0.014,67710.0,67709.0,0.1]
[1718282481213,0.014,67710.0,67709.0,0.11028019]
[1718282481368,0.15831993,67710.0,67709.0,0.11028019]
[1718282481578,0.08833,67727.0,67715.0,0.1]
[1718282481579,0.00886311,67727.0,67715.0,0.1]
[1718282481778,0.20558566,67726.0,67720.0,0.1]
[1718282481984,0.06126071,67725.0,67716.0,0.05]
[1718282482187,0.06126071,67725.0,67709.0,0.07215996]
[1718282482188,0.20558064,67724.0,67711.0,0.1]
[1718282482412,0.05,67712.0,67698.0,0.1]
[1718282482606,0.05,67712.0,67699.0,0.05]
[1718282482607,0.06126071,67711.0,67699.0,0.05]
[1718282482785,0.20558064,67710.0,67703.0,0.1]
[1718282483007,0.06126071,67710.0,67708.0,0.1]
[1718282483208,0.2437,67722.0,67711.0,0.1]
[1718282483209,0.05,67721.0,67711.0,0.1]
[1718282483415,0.21445153,67720.0,67710.0,0.05]
[1718282483663,0.21445153,67720.0,67704.0,0.1]
[1718282483664,0.06126769,67719.0,67704.0,0.1]
[1718282483810,0.14431993,67720.0,67711.0,0.1]
[1718282483811,0.20558762,67718.0,67711.0,0.1]
[1718282484016,0.06126769,67717.0,67708.0,0.1]
[1718282484235,0.14431993,67716.0,67704.0,0.1]
[1718282484432,0.06126769,67715.0,67704.0,0.1]
[1718282484637,0.20558762,67714.0,67707.0,0.22215996]
[1718282484816,0.06126769,67713.0,67712.0,0.1]
[1718282485019,0.06126769,67713.0,67709.0,0.1]
[1718282485369,0.06126769,67713.0,67707.0,0.06028019]
[1718282485370,0.014,67711.0,67707.0,0.15]
[1718282485579,0.06126769,67710.0,67707.0,0.15]
[1718282485779,0.14431993,67714.0,67709.0,0.1]
[1718282485988,0.06126785,67713.0,67706.0,0.1]
[1718282486212,0.15963831,67714.0,67703.0,0.1]
[1718282486213,0.20558778,67712.0,67703.0,0.1]
[1718282486434,0.06126785,67711.0,67704.0,0.05]
[1718282486637,0.07013176,67710.0,67709.0,0.1]
[1718282486843,0.07013176,67710.0,67707.0,0.1]
[1718282487043,0.07526785,67710.0,67706.0,0.1]
[1718282487246,0.06126785,67709.0,67708.0,0.1]
[1718282487454,0.06126785,67709.0,67707.0,0.1]
[1718282487660,0.014,67710.0,67708.0,0.1]
[1718282487863,0.06126589,67709.0,67707.0,0.1]
[1718282488080,0.014,67710.0,67708.0,0.11028019]
[1718282488297,0.02286391,67710.0,67709.0,0.16028019]
[1718282488523,0.07526414,67710.0,67709.0,0.16028019]
[1718282488932,0.06126414,67710.0,67709.0,0.16028019]
[1718282489357,0.06126414,67710.0,67695.0,0.05]
[1718282489358,0.20558407,67710.0,67695.0,0.05]
[1718282489563,0.00886458,67702.0,67701.0,0.16028019]
[1718282489774,0.07012872,67702.0,67701.0,0.16028019]
[1718282489983,0.06126414,67702.0,67701.0,0.16028019]
[1718282490600,0.109095,67720.0,67692.0,0.07215996]
[1718282490601,0.059095,67720.0,67715.0,0.1]
[1718282490809,0.2740433,67719.0,67710.0,0.05]
[1718282491031,0.2740433,67719.0,67692.0,0.07215996]
[1718282491032,0.00886344,67711.0,67703.0,0.1]
[1718282491237,0.21444724,67710.0,67692.0,0.15]
[1718282491449,0.00886344,67700.0,67692.0,0.15]
[1718282491651,0.00886344,67696.0,67692.0,0.15]
[1718282492072,0.06126387,67695.0,67694.0,0.1]
[1718282492341,0.06126387,67695.0,67694.0,0.11028019]
[1718282492521,0.06126387,67695.0,67694.0,0.16028019]
[1718282492735,0.06126387,67695.0,67694.0,0.31460012]
[1718282492942,0.06126387,67695.0,67694.0,0.89360012]
[1718282493145,0.06126387,67695.0,67694.0,0.73928019]
[1718282493362,0.00886537,67711.0,67706.0,0.05]
[1718282493569,0.00886389,67708.0,67707.0,0.1]
[1718282493809,0.07013111,67708.0,67707.0,0.1]
[1718282493985,0.07013111,67708.0,67707.0,0.11028019]
[1718282493986,0.06126722,67708.0,67707.0,0.11028019]
[1718282494189,0.06126722,67708.0,67707.0,0.16028019]
[1718282494611,0.06126722,67708.0,67707.0,0.05]
[1718282494847,0.06126722,67708.0,67693.0,0.1]
[1718282494848,0.3267,67707.0,67693.0,0.1]
[1718282495040,0.00886444,67701.0,67700.0,0.1]
[1718282495237,0.06126722,67701.0,67699.0,0.1]
[1718282495443,0.19843499,67706.0,67703.0,0.1]
[1718282495641,0.14431993,67706.0,67699.0,0.1]
[1718282495853,0.06127176,67705.0,67700.0,0.1]
[1718282496066,0.20559169,67704.0,67699.0,0.1]
[1718282496273,0.06127176,67703.0,67700.0,0.1]
[1718282496489,0.20559169,67702.0,67700.0,0.1]
[1718282496699,0.06127176,67701.0,67699.0,0.1]
[1718282496904,0.20559169,67700.0,67690.0,0.1]
[1718282497107,0.06127176,67699.0,67690.0,0.1]
[1718282497313,0.2635,67701.0,67682.0,0.05]
[1718282497314,0.14431993,67695.0,67682.0,0.05]
[1718282497523,0.14431993,67695.0,67683.0,0.1]
[1718282497748,0.06127176,67694.0,67691.0,0.1]
[1718282497964,0.06127176,67694.0,67689.0,0.06028019]
[1718282497965,0.06127176,67693.0,67692.0,0.11028019]
[1718282498639,0.06127176,67693.0,67692.0,0.16028019]
[1718282498850,0.06127176,67693.0,67692.0,0.17028019]
[1718282499058,0.06127176,67693.0,67692.0,0.38676008]
[1718282499473,0.06127176,67693.0,67692.0,0.63849035]
[1718282500151,0.06127176,67693.0,67692.0,0.70857951]
[1718282500570,0.00886319,67708.0,67707.0,0.16028019]
[1718282500783,0.00886319,67711.0,67710.0,0.05]
[1718282500995,0.00886319,67716.0,67715.0,0.11028019]
[1718282501214,0.00886319,67716.0,67715.0,0.16028019]
[1718282501446,0.059083,67721.0,67720.0,0.11028019]
[1718282501651,0.14431993,67725.0,67720.0,0.11028019]
[1718282501849,0.14431993,67725.0,67720.0,0.1]
[1718282502066,0.059084,67724.0,67719.0,0.1]
[1718282502277,0.059084,67724.0,67720.0,0.1]
[1718282502497,0.059084,67724.0,67718.0,0.05]
[1718282502700,0.059084,67724.0,67719.0,0.1]
[1718282502928,0.059084,67724.0,67720.0,0.1]
[1718282503343,0.059084,67724.0,67719.0,0.1]
[1718282503544,0.059084,67724.0,67720.0,0.1]
[1718282503691,0.059084,67724.0,67723.0,0.1]
[1718282504659,0.02311622,67726.0,67725.0,0.11028019]
[1718282505101,0.02311622,67726.0,67724.0,0.15]
[1718282505329,0.02311622,67726.0,67725.0,0.1]
[1718282505522,0.02311622,67726.0,67725.0,0.38676008]
[1718282505854,0.00886138,67736.0,67735.0,0.16028019]
[1718282506259,0.05,67763.0,67735.0,0.16028019]
[1718282506260,0.00886138,67746.0,67745.0,0.16028019]
[1718282506476,0.2557,67760.0,67747.0,0.1]
[1718282506477,0.00886138,67750.0,67747.0,0.1]
[1718282506692,0.00886138,67750.0,67749.0,0.11028019]
[1718282506899,0.00886138,67753.0,67749.0,0.11028019]
[1718282507168,0.00886138,67753.0,67741.0,0.1]
[1718282507169,0.14431993,67752.0,67741.0,0.1]
[1718282507378,0.14431993,67752.0,67743.0,0.1]
[1718282507379,0.01531813,67751.0,67743.0,0.1]
[1718282507616,0.00886138,67748.0,67745.0,0.1]
[1718282507798,0.14431993,67751.0,67745.0,0.1]
[1718282507799,0.00885949,67747.0,67746.0,0.1]
[1718282508026,0.14431993,67751.0,67748.0,0.1]
[1718282508169,0.06792249,67752.0,67748.0,0.1]
[1718282508388,0.059063,67752.0,67746.0,0.05]
[1718282508992,0.22533938,67751.0,67735.0,0.15]
[1718282509190,0.00885949,67748.0,67735.0,0.15]
[1718282509369,0.14631993,67747.0,67746.0,0.001]
[1718282509890,0.14431993,67747.0,67732.0,0.15]
[1718282510092,0.00886038,67743.0,67732.0,0.15]
[1718282510296,0.14431993,67742.0,67734.0,0.1]
[1718282510636,0.06124315,67741.0,67732.0,0.15]
[1718282510815,0.20556308,67740.0,67732.0,0.15]
[1718282510992,0.06124315,67739.0,67738.0,0.15]
[1718282511194,0.06124315,67739.0,67738.0,0.16028019]
[1718282511666,0.059063,67752.0,67741.0,0.1]
[1718282511814,0.059063,67752.0,67748.0,0.1]
[1718282511815,0.20555421,67751.0,67748.0,0.1]
[1718282512014,0.06123428,67750.0,67749.0,0.11028019]
[1718282512407,0.06123428,67750.0,67748.0,0.15]
[1718282512603,0.06123428,67749.0,67748.0,0.15]
[1718282513000,0.06123428,67749.0,67748.0,0.05]
[1718282513201,0.06123428,67751.0,67748.0,0.05]
[1718282513404,0.14431993,67749.0,67744.0,0.1]
[1718282513579,0.06123382,67748.0,67744.0,0.1]
[1718282513736,0.06123382,67748.0,67742.0,0.05]
[1718282513946,0.06123382,67747.0,67743.0,0.1]
[1718282514145,0.06123382,67746.0,67743.0,0.1]
[1718282514346,0.06123382,67746.0,67742.0,0.05]
[1718282514347,0.06123382,67745.0,67744.0,0.1]
[1718282514568,0.06123382,67745.0,67744.0,0.15]
[1718282514980,0.059063,67752.0,67748.0,0.15]
[1718282515228,0.059063,67752.0,67749.0,0.1]
[1718282515359,0.059063,67752.0,67751.0,0.11028019]
[1718282515557,0.38971901,67767.0,67755.0,0.1]
[1718282515787,0.26460616,67760.0,67755.0,0.1]